fUST/lending_fUST_20240514
["ID","MTS","AMOUNT","RATE_DAILY","PERIOD"]
[326954624,1715644240783,-11339.12,0.00082191,120]
[326954626,1715644240793,-4450.0,0.00082191,120]
[326954628,1715644240803,-11339.12,0.00082191,120]
[326954630,1715644240813,-11339.12,0.00082191,120]
[326954632,1715644240827,-11339.12,0.00082191,120]
[326954634,1715644240837,-4450.0,0.00082191,120]
[326954636,1715644240846,-4450.0,0.00082191,120]
[326954638,1715644240856,-11339.12,0.00082191,120]
[326954640,1715644240866,-11339.12,0.00082191,120]
[326954642,1715644240876,-11339.12,0.00082191,120]
[326954644,1715644240886,-11339.12,0.00082191,120]
[326954646,1715644240896,-2024.5806824,0.00082191,120]
[326954669,1715644241103,-501.66080742,0.00082191,120]
[326954950,1715644243835,-8812.87851018,0.00082191,120]
[326954952,1715644243844,-11339.12,0.00082191,120]
[326954954,1715644243854,-3133.21533826,0.00082191,120]
[326954956,1715644243866,-8205.90466174,0.00082191,120]
[326954958,1715644243876,-11339.12,0.00082191,120]
[326954960,1715644243885,-11339.12,0.00082191,120]
[326954962,1715644243895,-11339.12,0.00082191,120]
[326954964,1715644243907,-2536.61534505,0.00082191,120]
[326954967,1715644243920,-1540.0,0.00082191,120]
[326957386,1715644849363,215.37581827,9.999e-05,2]
[326957440,1715645431794,-215.37581827,0.0002091,2]
[326957441,1715645431803,-12270.59925863,0.00020911,2]
[326957442,1715645431812,-154.82968734,0.00020912,2]
[326957443,1715645431821,-4323.64178873,0.00020912,2]
[326957444,1715645431830,-299.53991116,0.00020912,2]
[326957445,1715645431839,-1400.26182546,0.00020912,2]
[326957446,1715645431848,-3867.69558095,0.00020912,2]
[326957447,1715645431858,-5642.03317562,0.00020912,2]
[326957448,1715645431867,-1148.14078624,0.00020912,2]
[326957449,1715645431876,-665.67444412,0.00020912,2]
[326957450,1715645431886,-521.89035678,0.00020912,2]
[326957452,1715645431895,-941.20026414,0.00020912,2]
[326957453,1715645431904,-166.394241,0.00020963,2]
[326957455,1715645431914,-569.23384257,0.0002739,10]
[326957457,1715645431923,-447.59882745,0.00032,4]
[326957459,1715645431932,-467.4319829,0.00034,4]
[326957461,1715645431941,-309.30393402,0.00035,4]
[326957463,1715645431950,-1297.27034119,0.0004,4]
[326957465,1715645431960,-606.20713054,0.0007,7]
[326957467,1715645431969,-997.95019286,0.00075,2]
[326957469,1715645431977,-291.52039741,0.00078011,120]
[326957471,1715645431987,-7921.11804829,0.00081369,4]
[326957473,1715645431996,-160.50871113,0.0008168,2]
[326957475,1715645432006,-2663.73655645,0.0008178,60]
[326957477,1715645432015,-492.38273767,0.0008219,120]
[326957479,1715645432024,-500.0,0.00082191,120]
[326957482,1715645432033,-203.03637132,0.00082191,120]
[326957484,1715645432044,-154.75239617,0.00082191,120]
[326957485,1715645432053,-300.00000009,0.00082191,120]
[326957487,1715645432063,-500.0,0.00082191,120]
[326957490,1715645432072,-500.0,0.00082191,120]
[326957492,1715645432082,-500.0,0.00082191,120]
[326957494,1715645432091,-500.0,0.00082191,120]
[326957496,1715645432100,-500.0,0.00082191,120]
[326957497,1715645432109,-214.9270287,0.00082191,120]
[326957499,1715645432118,-599.0,0.00082191,120]
[326957501,1715645432128,-500.0,0.00082191,120]
[326957503,1715645432137,-500.0,0.00082191,120]
[326957505,1715645432146,-500.0,0.00082191,120]
[326957507,1715645432156,-500.0,0.00082191,120]
[326957510,1715645432165,-162.44876245,0.00082191,120]
[326957512,1715645432177,-1311.71123755,0.00082191,120]
[326957514,1715645432186,-1187.57031799,0.00082191,120]
[326957516,1715645432198,-286.58968201,0.00082191,120]
[326957518,1715645432206,-436.32531751,0.00082191,120]
[326957520,1715645432215,-73.21968852,0.00082191,120]
[326957724,1715645437850,-412.80292201,0.00081364,31]
[326957725,1715645437909,-87.19707799,0.00081364,31]
[326957726,1715645437918,-500.0,0.00081364,31]
[326957727,1715645437927,-500.0,0.00081364,31]
[326957728,1715645437936,-500.0,0.00081364,31]
[326957729,1715645437945,-500.0,0.00081364,31]
[326957730,1715645437954,-152.41644647,0.00081364,31]
[326957731,1715645437963,-426.78031148,0.00082191,120]
[326957732,1715645437972,-500.0,0.00082191,120]
[326957733,1715645437980,-500.0,0.00082191,120]
[326957734,1715645437989,-800.0,0.00082191,120]
[326957735,1715645437998,-800.0,0.00082191,120]
[326957736,1715645438007,-1038.75,0.00082191,120]
[326957737,1715645438015,-1038.75,0.00082191,120]
[326957738,1715645438024,-500.0,0.00082191,120]
[326957739,1715645438032,-500.0,0.00082191,120]
[326957740,1715645438041,-8418.84,0.00082191,120]
[326957741,1715645438050,-8418.84,0.00082191,120]
[326957742,1715645438059,-500.0,0.00082191,120]
[326957743,1715645438068,-298.4,0.00082191,120]
[326957744,1715645438077,-500.0,0.00082191,120]
[326957745,1715645438086,-400.9445,0.00082191,120]
[326957746,1715645438095,-10000.0,0.000829,120]
[326957747,1715645438103,-281.0,0.000835,40]
[326957748,1715645438113,-411.1,0.00083988,3]
[326957749,1715645438121,-783.93,0.00083988,3]
[326957750,1715645438130,-500.0,0.00083998,120]
[326957751,1715645438139,-500.0,0.00083998,120]
[326957752,1715645438148,-500.0,0.00083998,120]
[326957753,1715645438157,-1474.16,0.00083998,120]
[326957754,1715645438166,-500.0,0.00083998,120]
[326957755,1715645438175,-800.0,0.00083998,120]
[326957756,1715645438183,-1038.75,0.00083998,120]
[326957757,1715645438192,-500.0,0.00083998,120]
[326957758,1715645438200,-8418.84,0.00083998,120]
[326957759,1715645438209,-500.0,0.00083999,120]
[326957760,1715645438219,-500.0,0.00083999,120]
[326957761,1715645438227,-500.0,0.00083999,120]
[326957762,1715645438236,-1474.16,0.00083999,120]
[326957763,1715645438245,-500.0,0.00083999,120]
[326957764,1715645438253,-800.0,0.00083999,120]
[326957765,1715645438262,-1038.75,0.00083999,120]
[326957766,1715645438271,-500.0,0.00083999,120]
[326957767,1715645438280,-8418.84,0.00083999,120]
[326957768,1715645438290,-40655.43699019,0.00084,120]
[326957769,1715645438302,-800.0,0.00084298,120]
[326957770,1715645438312,-800.0,0.00084298,120]
[326957771,1715645438321,-1038.75,0.00084298,120]
[326957772,1715645438331,-1038.75,0.00084298,120]
[326957773,1715645438341,-8418.84,0.00084298,120]
[326957774,1715645438352,-8418.84,0.00084298,120]
[326957775,1715645438362,-14101.77514395,0.00084299,61]
[326957776,1715645438374,-55555.0,0.00084299,120]
[326957777,1715645438385,-500.0,0.00084299,120]
[326957778,1715645438395,-500.0,0.00084299,120]
[326957779,1715645438404,-500.0,0.00084299,120]
[326957780,1715645438414,-500.0,0.00084299,120]
[326957781,1715645438424,-500.0,0.00084299,120]
[326957782,1715645438433,-254.09078,0.00084299,120]
[326957783,1715645438443,-1474.16,0.00084299,120]
[326957784,1715645438453,-1474.16,0.00084299,120]
[326957785,1715645438463,-500.0,0.00084299,120]
[326957786,1715645438473,-500.0,0.00084299,120]
[326957787,1715645438483,-4916.68,0.00084299,120]
[326957788,1715645438493,-500.0,0.00084299,120]
[326957789,1715645438503,-500.0,0.00084299,120]
[326957790,1715645438513,-1474.16,0.00084397,120]
[326957791,1715645438523,-800.0,0.00084397,120]
[326957792,1715645438533,-800.0,0.00084397,120]
[326957793,1715645438542,-1038.75,0.00084397,120]
[326957794,1715645438553,-1038.75,0.00084397,120]
[326957795,1715645438563,-8418.84,0.00084397,120]
[326957796,1715645438572,-8418.84,0.00084397,120]
[326957797,1715645438582,-500.0,0.00084398,120]
[326957798,1715645438591,-500.0,0.00084398,120]
[326957799,1715645438600,-500.0,0.00084398,120]
[326957800,1715645438609,-500.0,0.00084398,120]
[326957801,1715645438619,-258.07690936,0.00084398,120]
[326957802,1715645438628,-1474.16,0.00084398,120]
[326957803,1715645438637,-1474.16,0.00084398,120]
[326957804,1715645438646,-1474.16,0.00084398,120]
[326957805,1715645438655,-1474.16,0.00084398,120]
[326957806,1715645438665,-500.0,0.00084398,120]
[326957807,1715645438675,-500.0,0.00084398,120]
[326957808,1715645438684,-500.0,0.00084398,120]
[326957809,1715645438694,-800.0,0.00084398,120]
[326957810,1715645438703,-800.0,0.00084398,120]
[326957811,1715645438712,-800.0,0.00084398,120]
[326957812,1715645438722,-800.0,0.00084398,120]
[326957813,1715645438732,-1038.75,0.00084398,120]
[326957814,1715645438741,-1038.75,0.00084398,120]
[326957815,1715645438751,-1038.75,0.00084398,120]
[326957816,1715645438760,-1038.75,0.00084398,120]
[326957817,1715645438770,-500.0,0.00084398,120]
[326957818,1715645438779,-500.0,0.00084398,120]
[326957819,1715645438788,-580.04412207,0.00084398,120]
[326957820,1715645438798,-8418.84,0.00084398,120]
[326957821,1715645438807,-8418.84,0.00084398,120]
[326957822,1715645438816,-8418.84,0.00084398,120]
[326957823,1715645438825,-602.46903802,0.00084398,120]
[326957871,1715645445983,-653.28,0.00084389,3]
[326957872,1715645445992,-1055.95364637,0.00084398,120]
[326957998,1715646638060,-12270.59925863,0.00020912,2]
[326958000,1715646638070,-1147.80069477,0.00020912,2]
[326958002,1715646638079,-25811.28376684,0.00020913,2]
[326958004,1715646638089,-176.0989,0.00022036,2]
[326958006,1715646638098,-156.43338865,0.00026744,2]
[326958008,1715646638107,-500.0,0.00026841,2]
[326958010,1715646638116,-424.63175103,0.00026841,2]
[326958012,1715646638125,-500.0,0.00026841,2]
[326958014,1715646638134,-500.0,0.00026841,2]
[326958016,1715646638143,-500.0,0.00026841,2]
[326958018,1715646638153,-500.0,0.00026841,2]
[326958020,1715646638162,-500.0,0.00026841,2]
[326958022,1715646638171,-500.0,0.00026841,2]
[326958024,1715646638181,-500.0,0.00026841,2]
[326958026,1715646638190,-500.0,0.00026841,2]
[326958028,1715646638200,-500.0,0.00026841,2]
[326958030,1715646638209,-500.0,0.00026841,2]
[326958032,1715646638218,-500.0,0.00026841,2]
[326958034,1715646638227,-500.0,0.00026841,2]
[326958036,1715646638236,-500.0,0.00026841,2]
[326958038,1715646638245,-500.0,0.00026841,2]
[326958040,1715646638255,-500.0,0.00026841,2]
[326958042,1715646638264,-500.0,0.00026841,2]
[326958044,1715646638273,-500.0,0.00026841,2]
[326958046,1715646638282,-500.0,0.00026841,2]
[326958048,1715646638291,-500.0,0.00026841,2]
[326958050,1715646638299,-500.0,0.00026841,2]
[326958052,1715646638311,-500.0,0.00026841,2]
[326958054,1715646638320,-611.75506508,0.00026841,2]
[326958056,1715646638329,-467.4319829,0.00034,4]
[326958058,1715646638338,-483.90467511,0.00035,7]
[326958060,1715646638348,-156.43338865,0.00054418,2]
[326958062,1715646638357,-6694.081182,0.0006,120]
[326958064,1715646638368,-10000.0,0.00079,120]
[326958066,1715646638378,-1000.02511575,0.0008,2]
[326958068,1715646638387,-299.22408574,0.00080763,120]
[326958070,1715646638396,-233.21631793,0.00080863,120]
[326958072,1715646638405,-299.22408573,0.00081427,120]
[326958074,1715646638414,-500.0,0.00081999,120]
[326958076,1715646638424,-314.2698051,0.00081999,120]
[326958077,1715646638432,-550.0,0.00081999,120]
[326958080,1715646638442,-8579.8994654,0.00082,120]
[326958082,1715646638451,-156.43338865,0.00082091,2]
[326958084,1715646638460,-299.22408573,0.00082091,120]
[326958086,1715646638469,-7009.26,0.000821,120]
[326958088,1715646638478,-10000.0,0.0008215,120]
[326958089,1715646638488,-743.57,0.00082179,3]
[326958091,1715646638498,-309.50479234,0.00082187,7]
[326958093,1715646638507,-196.23960367,0.00082187,7]
[326958096,1715646638517,-242.1504963,0.00082187,7]
[326958098,1715646638527,-315.40750118,0.00082188,7]
[326958100,1715646638536,-15705.76411353,0.00082189,7]
[326958102,1715646638545,-1093.09826282,0.00082189,7]
[326958104,1715646638555,-2986.58492757,0.0008219,7]
[326958106,1715646638565,-14101.77514395,0.00082191,61]
[326958107,1715646638574,-1976.75554499,0.00082191,46]
[326958110,1715646638584,-500.0,0.00082191,120]
[326958111,1715646638594,-500.0,0.00082191,120]
[326958114,1715646638603,-236.683107,0.00082191,120]
[326958115,1715646638612,-500.0,0.00082191,120]
[326958117,1715646638621,-500.0,0.00082191,120]
[326958119,1715646638630,-500.0,0.00082191,120]
[326958121,1715646638640,-496.82367748,0.00082191,120]
[326958124,1715646638651,-500.0,0.00082191,120]
[326958125,1715646638662,-500.0,0.00082191,120]
[326958128,1715646638676,-500.0,0.00082191,120]
[326958130,1715646638685,-500.0,0.00082191,120]
[326958132,1715646638695,-500.0,0.00082191,120]
[326958133,1715646638704,-500.0,0.00082191,120]
[326958134,1715646638714,-500.0,0.00082191,120]
[326958136,1715646638723,-500.0,0.00082191,120]
[326958138,1715646638732,-500.0,0.00082191,120]
[326958140,1715646638745,-298.4,0.00082191,120]
[326958142,1715646638755,-500.0,0.00082191,120]
[326958144,1715646638763,-500.0,0.00082191,120]
[326958146,1715646638773,-20000.0,0.00082191,120]
[326958148,1715646638782,-20000.0,0.00082191,120]
[326958150,1715646638791,-20000.0,0.00082191,120]
[326958152,1715646638800,-20000.0,0.00082191,120]
[326958154,1715646638810,-500.0,0.00082191,120]
[326958156,1715646638819,-500.0,0.00082191,120]
[326958158,1715646638829,-500.0,0.00082191,120]
[326958160,1715646638839,-254.09078,0.00082191,120]
[326958162,1715646638849,-1351.31,0.00082191,120]
[326958164,1715646638858,-1351.31,0.00082191,120]
[326958166,1715646638867,-1351.31,0.00082191,120]
[326958168,1715646638876,-1351.31,0.00082191,120]
[326958170,1715646638886,-1351.31,0.00082191,120]
[326958172,1715646638895,-500.0,0.00082191,120]
[326958174,1715646638904,-521.78549666,0.00082191,120]
[326958176,1715646638913,-800.0,0.00082191,120]
[326958178,1715646638922,-800.0,0.00082191,120]
[326958180,1715646638932,-800.0,0.00082191,120]
[326958182,1715646638941,-800.0,0.00082191,120]
[326958183,1715646638951,-800.0,0.00082191,120]
[326958185,1715646638960,-800.0,0.00082191,120]
[326958187,1715646638969,-800.0,0.00082191,120]
[326958189,1715646638979,-426.78031148,0.00082191,120]
[326958191,1715646638990,-1038.75,0.00082191,120]
[326958193,1715646638999,-1038.75,0.00082191,120]
[326958195,1715646639008,-1038.75,0.00082191,120]
[326958208,1715646639131,-1038.75,0.00082191,120]
[326958210,1715646639143,-1038.75,0.00082191,120]
[326958212,1715646639153,-1038.75,0.00082191,120]
[326958214,1715646639163,-1038.75,0.00082191,120]
[326958216,1715646639174,-22653.61,0.00082191,120]
[326958218,1715646639185,-3637.35363241,0.00082191,120]
[326961039,1715647530715,215.37581827,9.999e-05,2]
[326961040,1715647662590,784.62418173,9.999e-05,2]
[326961041,1715647662613,1000.001643,9.999e-05,2]
[326961042,1715647662636,364.098842,9.999e-05,2]
[326961043,1715647662661,13985.74116696,9.999e-05,2]
[326961044,1715647680705,5519.25843762,9.999e-05,2]
[326961045,1715647680735,10615.20739607,9.999e-05,2]
[326961046,1715647694711,16134.46583369,9.999e-05,2]
[326961047,1715647712575,10929.95520573,9.999e-05,2]
[326961075,1715647833295,-164.288126,0.00023562,2]
[326961076,1715647833305,-504.19337631,0.00028,2]
[326961077,1715647833315,-154.87609912,0.0005,30]
[326961078,1715647833324,-1500.0,0.00054795,120]
[326961079,1715647833334,-1575.85,0.00054795,120]
[326961080,1715647833344,-187.526689,0.00055105,30]
[326961081,1715647833353,-372.05035785,0.00069999,7]
[326961083,1715647833363,-606.20713054,0.0007,7]
[326961085,1715647833372,-1368.34678894,0.00079997,7]
[326961087,1715647833381,-931.71034835,0.00079999,7]
[326961089,1715647833390,-2000.0,0.0008,120]
[326961091,1715647833400,-164.288126,0.00080274,120]
[326961092,1715647833409,-277.67317853,0.0008127,120]
[326961093,1715647833419,-1868.0,0.000818,120]
[326961094,1715647833428,-2062.43537261,0.0008199,28]
[326961095,1715647833437,-156.43338865,0.00081999,2]
[326961096,1715647833447,-323.38433755,0.00082,120]
[326961097,1715647833456,-5000.0,0.00082,120]
[326961098,1715647833465,-358.59,0.00082081,3]
[326961099,1715647833474,-683.8,0.00082081,3]
[326961100,1715647833483,-569.84,0.00082081,3]
[326961101,1715647833493,-447.59882745,0.00082089,7]
[326961102,1715647833502,-500.0,0.00082089,31]
[326961103,1715647833512,-500.0,0.00082089,31]
[326961104,1715647833521,-290.19500723,0.00082089,31]
[326961105,1715647833534,-314.2698051,0.0008209,120]
[326961106,1715647833544,-500.0,0.0008209,120]
[326961107,1715647833553,-550.0,0.0008209,120]
[326961108,1715647833563,-500.0,0.0008209,120]
[326961109,1715647833572,-1351.31,0.0008209,120]
[326961110,1715647833582,-500.0,0.0008209,120]
[326961111,1715647833592,-1272.86,0.0008209,120]
[326961112,1715647833602,-426.78031148,0.0008209,120]
[326961113,1715647833611,-22653.61,0.0008209,120]
[326961114,1715647833620,-800.0,0.0008209,120]
[326961115,1715647833631,-1000.0,0.0008209,2]
[326961116,1715647833640,-500.0,0.0008209,120]
[326961117,1715647833649,-1447.33,0.0008209,120]
[326961118,1715647833659,-20000.0,0.0008209,120]
[326961119,1715647833668,-500.0,0.0008209,120]
[326961120,1715647833677,-10405.51948187,0.00082091,120]
[326961162,1715647838917,-500.0,0.0008209,120]
[326961165,1715647838928,-45149.48051813,0.00082091,120]
[326961167,1715647838938,-7009.26,0.000821,120]
[326961169,1715647838947,-1000.0,0.00082178,2]
[326961171,1715647838957,-474.86,0.0008218,3]
[326961173,1715647838966,-13850.62226971,0.00082189,2]
[326961175,1715647838976,-467.4319829,0.00082189,7]
[326961177,1715647838985,-1093.09826282,0.00082189,7]
[326961179,1715647838994,-2986.58492757,0.00082189,7]
[326961181,1715647839003,-500.0,0.00082189,30]
[326961183,1715647839012,-2808.26543682,0.00082189,7]
[326961185,1715647839021,-309.50479234,0.00082189,7]
[326961187,1715647839031,-196.23960367,0.00082189,7]
[326961189,1715647839042,-15705.76411353,0.00082189,7]
[326961190,1715647839054,-315.40750118,0.00082189,7]
[326961192,1715647839064,-1000.0,0.00082189,2]
[326961205,1715647839176,-155.15164199,0.0008219,7]
[326961207,1715647839186,-890.67521582,0.0008219,7]
[326961209,1715647839197,-7776.37783765,0.0008219,7]
[326961211,1715647839206,-1000.0,0.0008219,2]
[326961213,1715647839216,-1000.0,0.0008219,2]
[326961215,1715647839226,-1000.0,0.0008219,2]
[326961217,1715647839236,-1000.0,0.0008219,2]
[326961219,1715647839246,-1000.0,0.0008219,2]
[326961221,1715647839255,-1000.0,0.0008219,2]
[326961223,1715647839265,-1000.0,0.0008219,2]
[326961226,1715647839274,-1000.0,0.0008219,2]
[326961227,1715647839284,-1000.0,0.0008219,2]
[326961230,1715647839294,-1000.0,0.0008219,2]
[326961232,1715647839303,-1000.0,0.0008219,2]
[326961233,1715647839312,-1000.0,0.0008219,2]
[326961236,1715647839322,-1000.0,0.0008219,2]
[326961237,1715647839331,-1000.0,0.0008219,2]
[326961240,1715647839340,-1000.0,0.0008219,2]
[326961242,1715647839350,-1000.0,0.0008219,2]
[326961243,1715647839359,-178.93288021,0.0008219,2]
[326961245,1715647839369,-28203.55028789,0.00082191,61]
[326961248,1715647839378,-500.0,0.00082191,120]
[326961250,1715647839388,-500.0,0.00082191,120]
[326961251,1715647839397,-500.0,0.00082191,120]
[326961253,1715647839406,-500.0,0.00082191,120]
[326961256,1715647839416,-500.0,0.00082191,120]
[326961258,1715647839426,-500.0,0.00082191,120]
[326961260,1715647839435,-505.04315384,0.00082191,120]
[326961262,1715647839444,-236.683107,0.00082191,120]
[326961264,1715647839453,-500.0,0.00082191,120]
[326961266,1715647839463,-496.82367748,0.00082191,120]
[326961268,1715647839471,-500.0,0.00082191,120]
[326961270,1715647839481,-500.0,0.00082191,120]
[326961272,1715647839490,-500.0,0.00082191,120]
[326961274,1715647839500,-398.98216053,0.00082191,120]
[326961276,1715647839509,-500.0,0.00082191,120]
[326961278,1715647839518,-500.0,0.00082191,120]
[326961279,1715647839527,-500.0,0.00082191,120]
[326961282,1715647839537,-500.0,0.00082191,120]
[326961284,1715647839547,-500.0,0.00082191,120]
[326961286,1715647839555,-500.0,0.00082191,120]
[326961288,1715647839565,-500.0,0.00082191,120]
[326961290,1715647839575,-500.0,0.00082191,120]
[326961292,1715647839584,-500.0,0.00082191,120]
[326961294,1715647839594,-544.10651212,0.00082191,120]
[326961295,1715647839603,-500.0,0.00082191,120]
[326961297,1715647839612,-500.0,0.00082191,120]
[326961299,1715647839621,-500.0,0.00082191,120]
[326961302,1715647839631,-500.0,0.00082191,120]
[326961303,1715647839640,-500.0,0.00082191,120]
[326961306,1715647839650,-500.0,0.00082191,120]
[326961308,1715647839659,-500.0,0.00082191,120]
[326961310,1715647839669,-500.0,0.00082191,120]
[326961311,1715647839678,-500.0,0.00082191,120]
[326961313,1715647839688,-521.78549666,0.00082191,120]
[326961316,1715647839699,-151.0,0.00082191,31]
[326961318,1715647839709,-254.09,0.00082191,31]
[326961320,1715647839718,-998.0,0.00082191,120]
[326961322,1715647839728,-998.0,0.00082191,120]
[326961324,1715647839738,-998.0,0.00082191,120]
[326961326,1715647839747,-998.0,0.00082191,120]
[326961328,1715647839756,-998.0,0.00082191,120]
[326961330,1715647839766,-998.0,0.00082191,120]
[326961332,1715647839775,-998.0,0.00082191,120]
[326961334,1715647839788,-998.0,0.00082191,120]
[326961336,1715647839797,-998.0,0.00082191,120]
[326961338,1715647839807,-998.0,0.00082191,120]
[326961340,1715647839816,-998.0,0.00082191,120]
[326961342,1715647839826,-998.0,0.00082191,120]
[326961344,1715647839835,-998.0,0.00082191,120]
[326961346,1715647839845,-998.0,0.00082191,120]
[326961348,1715647839854,-998.0,0.00082191,120]
[326961349,1715647839864,-998.0,0.00082191,120]
[326961350,1715647839874,-975.054,0.00082191,120]
[326961351,1715647839883,-151.0,0.00082191,120]
[326961352,1715647839892,-151.0,0.00082191,120]
[326961353,1715647839902,-151.0,0.00082191,120]
[326961354,1715647839911,-151.0,0.00082191,120]
[326961355,1715647839920,-151.0,0.00082191,120]
[326961356,1715647839930,-151.0,0.00082191,120]
[326961357,1715647839939,-151.0,0.00082191,120]
[326961358,1715647839948,-151.0,0.00082191,120]
[326961359,1715647839958,-151.0,0.00082191,120]
[326961360,1715647839967,-151.0,0.00082191,120]
[326961361,1715647839976,-151.0,0.00082191,120]
[326961362,1715647839985,-151.0,0.00082191,120]
[326961363,1715647839995,-151.0,0.00082191,120]
[326961364,1715647840004,-151.0,0.00082191,120]
[326961365,1715647840014,-151.0,0.00082191,120]
[326961366,1715647840024,-151.0,0.00082191,120]
[326961367,1715647840033,-151.0,0.00082191,120]
[326961368,1715647840044,-500.0,0.00082191,120]
[326961369,1715647840054,-282.0,0.00082191,120]
[326961370,1715647840063,-500.0,0.00082191,120]
[326961371,1715647840072,-500.0,0.00082191,120]
[326961373,1715647840083,-500.0,0.00082191,120]
[326961375,1715647840092,-500.0,0.00082191,120]
[326961377,1715647840102,-258.07690936,0.00082191,120]
[326961379,1715647840111,-151.0,0.00082191,120]
[326961381,1715647840121,-151.0,0.00082191,120]
[326961384,1715647840134,-151.0,0.00082191,120]
[326961386,1715647840143,-151.0,0.00082191,120]
[326961387,1715647840153,-151.0,0.00082191,120]
[326961389,1715647840163,-151.0,0.00082191,120]
[326961391,1715647840173,-151.0,0.00082191,120]
[326961393,1715647840183,-151.0,0.00082191,120]
[326961396,1715647840192,-151.0,0.00082191,120]
[326961398,1715647840203,-151.0,0.00082191,120]
[326961400,1715647840212,-151.0,0.00082191,120]
[326961401,1715647840222,-299.547188,0.00082191,120]
[326961403,1715647840231,-4916.68,0.00082191,120]
[326961406,1715647840241,-4450.0,0.00082191,120]
[326961407,1715647840251,-4450.0,0.00082191,120]
[326961409,1715647840260,-1226.18465904,0.00082191,120]
[326961412,1715647840273,-2219.81826364,0.00082191,120]
[326961414,1715647840288,-1003.99707732,0.00082191,120]
[326961416,1715647840298,-4450.0,0.00082191,120]
[326961418,1715647840308,-4450.0,0.00082191,120]
[326961420,1715647840319,-4450.0,0.00082191,120]
[326961422,1715647840328,-27949.36864216,0.00082364,46]
[326961424,1715647840340,-2048.82153833,0.00082364,46]
[326961426,1715647840350,-1351.31,0.00082364,120]
[326961428,1715647840359,-500.0,0.00082364,120]
[326961430,1715647840369,-1272.86,0.00082364,120]
[326961432,1715647840379,-1429.16061464,0.00082364,120]
[326961485,1715647840897,-21224.44938536,0.00082364,120]
[326961487,1715647840906,-800.0,0.00082364,120]
[326961489,1715647840916,-500.0,0.00082364,120]
[326961491,1715647840926,-1447.33,0.00082364,120]
[326961493,1715647840936,-13737.6576864,0.00082364,120]
[326961782,1715648691026,260.5,9.999e-05,2]
[326961783,1715648709885,619.0,0.00023,30]
[326961843,1715649032516,-15705.76411353,0.00020368,2]
[326961845,1715649032531,-24621.7717394,0.00020369,2]
[326961847,1715649032541,-260.5,0.0002091,2]
[326961849,1715649032552,-689.68866826,0.00020911,2]
[326961851,1715649032561,-189.74256337,0.00020912,2]
[326961853,1715649032571,-12270.59925863,0.00020913,2]
[326961855,1715649032581,-163.570765,0.00023562,2]
[326961857,1715649032590,-1767.80174796,0.00054897,28]
[326961859,1715649032599,-474.86,0.00054988,3]
[326961861,1715649032608,-395.72,0.00054988,3]
[326961863,1715649032617,-4555.08324681,0.00054996,2]
[326961865,1715649032626,-1000.0,0.00054997,2]
[326961868,1715649032636,-1000.0,0.00054997,2]
[326961870,1715649032645,-1000.0,0.00054997,2]
[326961871,1715649032654,-450.0,0.00054997,120]
[326961874,1715649032664,-112011.13181437,0.00054998,4]
[326961876,1715649032674,-800.89891987,0.00054999,4]
[326961878,1715649032683,-334.0,0.00055,120]
[326961880,1715649032692,-17910.25018413,0.00079452,61]
[326961959,1715649038657,-500.0,0.00020913,2]
[326961960,1715649038668,-533.11086021,0.00020913,2]
[326961961,1715649038678,-10293.30010376,0.00079452,61]
[326961962,1715649038687,-591.78958919,0.00079452,120]
[326961963,1715649038697,-500.0,0.00079452,120]